Cogmind - Beta 10.2 @@@ ROGUE MODE // 2021.07.11 @ 20:07:29 Player: Demise Result: Destroyed self with Grenade Launcher Performance ------------- Evolutions (0) 0 Regions Visited (2) 400 Robots Destroyed (40) 200 Value Destroyed (618) 618 Prototype IDs (2) 40 Alien Tech Used (0) 0 Bonus (0) 0 TOTAL SCORE: 1258 Bonus ------- None Cogmind --------- Core Integrity 0/250 Matter 268/300 Energy 85/100 System Corruption 3% Temperature Cool (0) Movement Core (850) Ox16 Location -10/Mines Parts ------- > --- POWER (1) -------- (None) > --- PROPULSION (2) --- (None) > --- UTILITY (2) ------ Large Storage Unit High-capacity Storage Unit > --- WEAPON (2) ------- Grenade Launcher > --- INVENTORY (18) --- Improved Ion Engine Light Treads Light Treads Light Treads Medium Storage Unit Large Storage Unit Light Armor Plating Light Armor Plating Light Armor Plating Hacking Suite Assault Rifle Autogun Autogun Datajack Mining Laser Mining Claw Peak State ------------ > --- POWER ------------ Improved Ion Engine > --- PROPULSION ------- Light Treads Light Treads > --- UTILITY ---------- Large Storage Unit High-capacity Storage Unit > --- WEAPON ----------- Autogun Autogun > --- INVENTORY -------- Improved Ion Engine Medium Storage Unit Large Storage Unit Small Matter Pod Medium Matter Pod Light Armor Plating Light Armor Plating Light Armor Plating Hacking Suite Assault Rifle Autogun Autogun Grenade Launcher Datajack Mining Laser [Rating: 12] Favorites ----------- Power Improved Ion Engine Engine Improved Ion Engine Propulsion Light Treads Treads Light Treads Utility High-capacity Storage Unit Device Tractor Beam Storage High-capacity Storage Unit Processor Signal Interpreter Weapon Autogun Energy Gun Medium Laser Ballistic Gun Autogun Launcher Grenade Launcher Special Weapon Mining Laser Slashing Weapon Mining Claw Build | -11 -10 -10 ------- Run | Scr Mat Min Slots Evolved . | . . . Power . | . . . Propulsion . | . . . Utility . | . . . Weapon . | . . . Parts Attached 29 | 9 19 1 Power 2 | 1 1 . Engine 2 | 1 1 . Core . | . . . Reactor . | . . . Propulsion 7 | 2 5 . Treads 7 | 2 5 . Leg . | . . . Wheel . | . . . Hover . | . . . Flight . | . . . Utility 8 | 3 5 . Device 1 | 1 . . Storage 6 | 2 4 . Processor 1 | . 1 . Hackware . | . . . Protection . | . . . Artifact . | . . . Weapon 12 | 3 8 1 Energy Gun 1 | 1 . . Energy Cannon . | . . . Ballistic Gun 8 | 2 6 . Ballistic Cannon . | . . . Launcher 1 | . . 1 Special Weapon 1 | . 1 . Impact Weapon . | . . . Slashing Weapon 1 | . 1 . Piercing Weapon . | . . . Special Melee Weapon . | . . . Unidentified Prototypes . | . . . Parts Lost 5 | . . 5 Power 1 | . . 1 Propulsion 2 | . . 2 Utility . | . . . Weapon 2 | . . 2 Highest Loss Streak 5 | . . 5 Average Slot Usage (%) 97 | . 98 87 Engine 13 | . 14 10 Treads 27 | . 27 22 Storage 27 | . 27 28 Ballistic Gun 25 | . 25 24 Special Weapon 1 | . 1 . Naked Turns . | . . . Heaviest Build 61 | 16 61 61 Greatest Support 40 | 40 40 40 Greatest Overweight (x) 16 | . 1 16 Average Overweight (x) . | . . 1 Largest Inventory Capacity 18 | 8 18 18 Average Capacity 14 | 5 14 18 Most Carried 18 | 6 18 17 Average Carried 13 | 4 14 16 Final Capacity 18 | 8 18 18 Final Carried 17 | 6 17 16 Class Distribution -------------------- 100% | Mutant Dominant Class ---------------- Mutant | -10/Materials Mutant | -10/Mines Resources | -11 -10 -10 ----------- Run | Scr Mat Min Matter Collected 1261 | 440 821 . Remotely 195 | 195 . . Salvage Created 1170 | 209 887 74 Parts 92 | 18 72 2 Haulers Intercepted 2 | . 2 . Recyclers Shooed . | . . . Parts Field Recycled . | . . . Retrieved Matter . | . . . Parts Self-Destructed . | . . . Prevented . | . . . Kills | -11 -10 -10 ------- Run | Scr Mat Min Combat Hostiles Destroyed 21 | . 18 3 Guns 19 | . 18 1 AOE 2 | . . 2 Classes Destroyed 10 | 3 5 2 Worker 7 | 2 5 . Tunneler 5 | 5 . . Hauler 2 | . 2 . Recycler 2 | 1 1 . Operator 1 | . 1 . Watcher 3 | . 3 . Swarmer 9 | . 9 . Grunt 10 | . 9 1 Demolisher 1 | . . 1 Assembled 1 | . . 1 Best Kill Streak 6 | 6 5 2 Combat Bots Only 5 | . 5 2 Max Kills in Single Turn 2 | 1 1 2 Gunslinging . | . . . Exploded 2 | . . 2 Melee . | . . . Uniques/NPCs Destroyed . | . . . Combat | -11 -10 -10 -------- Run | Scr Mat Min Damage Taken 1283 | . 495 788 Core 251 | . 47 204 Absorbed by Shields . | . . . Core Remaining (%) 100 | 100 . . Volleys Fired 110 | 18 85 7 Largest 2 | 2 2 2 Hottest 100 | 70 100 46 Shots Fired 197 | 36 152 9 Gun 178 | 36 134 8 Cannon . | . . . Launcher 1 | . . 1 Special 18 | . 18 . Kinetic 177 | 35 134 8 Thermal 19 | 1 18 . Explosive 1 | . . 1 Electromagnetic . | . . . Robot Hit Streak 14 | 7 14 7 Robot Miss Streak 3 | 2 3 1 Penetration Max . | . . . Secondary Targets 2 | . 2 . Max Gunslinging Chain 1 | . 1 . Shots Hit Robots 118 | 22 88 8 Core Hits 49 | 12 33 4 Critical Hits 2 | . 1 1 Critical Kills . | . . . Critical Parts Destroyed 2 | . 1 1 Melee Attacks 3 | . 3 . Impact . | . . . Slashing 3 | . 3 . Piercing . | . . . Sneak Attacks . | . . . Combat Hostiles . | . . . Follow-up Attacks . | . . . Damage Inflicted 1819 | 226 1373 220 Guns 1712 | 226 1373 113 Cannons . | . . . Explosions 107 | . . 107 Melee . | . . . Ramming . | . . . Kinetic 1712 | 226 1373 113 Thermal . | . . . Explosive 107 | . . 107 Electromagnetic . | . . . Impact . | . . . Slashing . | . . . Piercing . | . . . Highest Corruption 3 | . 3 3 Average Corruption 2 | . 1 3 Corruption Purged . | . . . Effects 16 | . 14 2 Message Errors 4 | . 3 1 Matter Fused 4 | . 3 1 Heat Flow Errors 1 | . 1 . Energy Discharges 2 | . 2 . Data Loss (minor) 2 | . 2 . Targeting Errors 3 | . 3 . Overload Shots . | . . . Overflow Damage . | . . . Projectiles . | . . . Explosions . | . . . Melee . | . . . Knockbacks . | . . . Impact . | . . . Kinetic . | . . . Secondary . | . . . Self-Inflicted Damage 6 | . . 6 Shots 1 | . . 1 Rammed 1 | . 1 . Targets Rammed 1 | . 1 . Kicked . | . . . Crushed . | . . . Highest Temperature 168 | . 168 8 Average Temperature 31 | . 32 6 Received Heat Transfer 285 | . 138 147 Siege Activations . | . . . Robots Corrupted . | . . . Combat Hostiles . | . . . Parts Fried . | . . . Impact Corruptions . | . . . Robots Melted . | . . . Combat Hostiles . | . . . Parts Melted . | . . . Heat Transferred . | . . . Parts Sabotaged . | . . . Parts Stolen . | . . . Parts Stripped . | . . . Power Chain Reactions . | . . . Missiles Intercepted . | . . . Alert | -11 -10 -10 ------- Run | Scr Mat Min Peak Influence 347 | 40 347 65 Initial 45 | . 26 45 Average 141 | 20 158 48 Maximum Alert Level 1 | . 1 . Low Security (%) 74 | 100 70 100 Level 1 25 | . 29 . Level 2 . | . . . Level 3 . | . . . Level 4 . | . . . Level 5 . | . . . High Security . | . . . Max Security . | . . . Squads Dispatched 5 | . 5 . Investigation 4 | . 4 . Extermination . | . . . Reinforcement 1 | . 1 . Assault . | . . . Garrison . | . . . Intercept . | . . . Construction Impeded . | . . . Haulers Reinforced . | . . . Stealth | -11 -10 -10 --------- Run | Scr Mat Min Distress Signals . | . . . Communications Jammed . | . . . Distress Signals . | . . . Times Spotted 30 | . 24 6 Peak Tracking Total 7 | . 7 4 Tactical Retreats 2 | . 2 . Traps | -11 -10 -10 ------- Run | Scr Mat Min Traps Triggered 3 | . 3 . Indirectly . | . . . Trap Hack Attempts . | . . . Triggered . | . . . Disarmed . | . . . Reprogrammed . | . . . Reused . | . . . Traps Extracted . | . . . Installed . | . . . Triggered . | . . . Machines | -11 -10 -10 ---------- Run | Scr Mat Min Machines Disabled 1 | . 1 . Max in Single Turn 1 | . 1 . Machines Sabotaged . | . . . Garrisons Compromised . | . . . Overloaded Fab Kills . | . . . Fab Network Shutdowns . | . . . Hacking | -11 -10 -10 --------- Run | Scr Mat Min Machines Accessed 10 | . 10 . Terminals 7 | . 7 . Fabricators . | . . . Repair Stations 1 | . 1 . Recycling Units 2 | . 2 . Scanalyzers . | . . . Garrison Access . | . . . Total Hacks 46 | . 46 . Successful 26 | . 26 . Failed 20 | . 20 . Catastrophic 2 | . 2 . Database Lockouts . | . . . Manual 27 | . 27 . Terminals 28 | . 28 . Fabricators . | . . . Repair Stations 12 | . 12 . Recycling Units 6 | . 6 . Scanalyzers . | . . . Garrison Access . | . . . Terminal Hacks 7 | . 7 . Part Schematic 1 | . 1 . Robot Analysis 3 | . 3 . Prototype ID Bank 1 | . 1 . Terminal Index 1 | . 1 . Locate Traps 1 | . 1 . Fabricator Hacks . | . . . Repair Station Hacks 9 | . 9 . Scan Component 5 | . 5 . Repair 4 | . 4 . Recycling Unit Hacks 1 | . 1 . Retrieve Components 1 | . 1 . Scanalyzer . | . . . Garrison Access Hacks . | . . . Unauthorized Hacks 9 | . 9 . Terminals 7 | . 7 . Botnet 6 | . 6 . Operators 1 | . 1 . Fabricators . | . . . Repair Stations . | . . . Recycling Units 2 | . 2 . Recyclers 1 | . 1 . Tunnel 1 | . 1 . Scanalyzers . | . . . Garrison Access . | . . . Data Cores Recovered . | . . . Used . | . . . Hacking Detections 10 | . 10 . Full Trace Events 5 | . 5 . Feedback Events 1 | . 1 . Corruption 1 | . 1 . Feedback Blocked . | . . . Robot Schematics Acquired . | . . . Robots Built . | . . . Matter . | . . . Time . | . . . Total Robot Build Rating . | . . . Part Schematics Acquired 1 | . 1 . Parts Built . | . . . Matter . | . . . Time . | . . . Total Part Build Rating . | . . . Parts Repaired 4 | . 4 . Time 128 | . 128 . Parts Recycled . | . . . Recycled Matter . | . . . Retrieved Matter . | . . . Retrieved Components 2 | . 2 . Parts Scanalyzed . | . . . Part Schematics Acquired . | . . . Parts Damaged . | . . . Bothacking | -11 -10 -10 ------------ Run | Scr Mat Min Used RIF Installer . | . . . Robots Hacked . | . . . Non-combat . | . . . Combat . | . . . Robot Hacks Applied . | . . . Relay Couplers Released . | . . . Robots Rewired . | . . . Allies Hacked . | . . . Hacks Repelled . | . . . Allies | -11 -10 -10 -------- Run | Scr Mat Min Total Allies . | . . . Largest Group . | . . . Highest-Rated Group . | . . . Highest-Rated Ally . | . . . Total Orders . | . . . Ally Attacks . | . . . Total Damage . | . . . Kills . | . . . Allies Corrupted . | . . . Allies Melted . | . . . Intel | -11 -10 -10 ------- Run | Scr Mat Min Robot Analysis Total 3 | . 3 . Derelict Logs Recovered . | . . . Drone Launches . | . . . Drone Recoveries . | . . . Exploration | -11 -10 -10 ------------- Run | Scr Mat Min Turns Passed 1916 | 181 1657 78 Spaces Moved 790 | 77 681 32 Core 11 | 10 . 1 Treads 779 | 67 681 31 Legs . | . . . Wheels . | . . . Hover . | . . . Flight . | . . . Fastest Speed 50 | 50 160 180 Average Speed 174 | 145 176 201 Slowest Speed 850 | 160 180 850 Overloaded Moves . | . . . Propulsion Burnouts . | . . . Robots Hopped . | . . . Cave-ins Triggered . | . . . Exploration Rate (%) 38 | 4 99 12 Regions Visited 2 Branch Regions 1 Pre-discovered Areas 1 | . 1 . Known Exits Taken . | . . . Unknown Exits Taken 2 | 1 1 . Scrap Searched . | . . . Spaces Dug 10 | . 10 . Terrain Destroyed 24 | . 20 4 Melee 3 | . 3 . Projectile 17 | . 17 . AOE 4 | . . 4 Terrain Rammed . | . . . Walls Destroyed . | . . . Machines Disabled . | . . . Actions | -11 -10 -10 --------- Run | Scr Mat Min Total 1134 | 114 980 40 Wait 142 | . 142 . Move 788 | 76 680 32 Hop . | . . . Pick Up 37 | 8 29 . Fast Attach 10 | 6 4 . Attach 8 | 3 4 1 Detach 6 | 2 4 . Swap 11 | . 11 . Drop 18 | 1 17 . Fire 110 | 18 85 7 Melee 3 | . 3 . Ram . | . . . Kick . | . . . Crush 1 | . 1 . Escape Stasis . | . . . Rewire . | . . . Trap . | . . . Miscellaneous . | . . . Route ------- -11/Scrapyard -10/Materials (discovered 5 exits: *Mat x3 / [*Min x2]) -10/Mines (discovered 1 exit: *Mat) History --------- Turn | Location | Event 9 | -11/Scrapyard | Discovered new exit (range 15) 182 | -11/Scrapyard | Entered Materials 308 | -10/Materials | Build established: Mutant 417 | -10/Materials | Repaired Autogun 462 | -10/Materials | Repaired Broken Autogun 489 | -10/Materials | Repaired Lgt. Treads 517 | -10/Materials | Repaired Lgt. Treads 701 | -10/Materials | Discovered new exit (range 15) 936 | -10/Materials | Discovered new exit (range 16) 992 | -10/Materials | Discovered new exit (range 16) 1470 | -10/Materials | Discovered new exit (range 16) 1555 | -10/Materials | Discovered new exit (range 8) 1583 | -10/Materials | Identified exit to Materials 1839 | -10/Materials | Entered Mines 1840 | -10/Mines | Assembled infested the area 1891 | -10/Mines | Discovered exit to Materials (range 5) 1906 | -10/Mines | Core integrity fell below 50% 1912 | -10/Mines | Core integrity fell below 20% 1917 | -10/Mines | Destroyed self with Grenade Launcher Last Messages --------------- 01873_ K-01 Serf collects debris. 01874_ U-05 Engineer lays Concrete. 01876_ The unstable cave ceiling collapses. 01877_ K-01 Serf collects debris. 01878_ The unstable cave ceiling collapses. 01880_ K-01 Serf destroyed. 01882_ K-01 Serf collects debris. 01884_ The unstable cave ceiling collapses. 01885_ System corrupted: Matter fused (-5). 01885_ K-01 Serf destroyed. 01890_ Imp. Ion Engine destroyed. 01891_ EXIT=FOUND: MATERIALS 01898_ Autogun destroyed. 01898_ Lgt. Treads destroyed. 01914_ S%>X9EJDU =IKGT0R>I SWY 01915_ as-82102 suffers critical hit. 01915_ Destroyed Asb. Hover Unit. 01915_ Autogun destroyed. 01917_ as-82102 destroyed. 01917_ G-47 Trooper destroyed. Map ----- +----------------------------------------------------+ | ?????????????????????????????????? | | ?????????????????????????????????? | | ?????????????????????????????????? | | ?????????????????????????????????? | | ?????????????????????????????????? | | ?????????????????????????????????? | | ?????????????????????????????????? | | ?????????????????????????????????? | | ?????????????????????????????????? | | ?????????????????????????????????? | | ?????????????????????????????????? | | ?????????????????????????????????? | | ?????????????????????????????????? | | ?????????????????????????????????? | | ?????????????????????????????????? | | ?????????????????????????????????? | | ?????????????????????????????????? | | ?????????????????????????????????? | | ?????????????????????###### ###??? | | ?????????????????????# #??? | | ?????????????????????# #??? | | ?????????????????????# %a #??? | | ?????????????????????# % #??? | | ?????????????????????# ! g #??? | | ?????????????????????# # #??? | | ?????????????????????# #@ #??? | | ?????????????? ?????# #######??? | | ?????????????? ?????# #????????? | | ?????????????? ?????# #????????? | | ?????????????? ?????# #????????? | | ?????????????? ????## %###??????? | | ?????????????? ???## # ####???? | | ?????????????# ??## ##??? | | ????????????## ?### = #??? | | ???????????## # ##%* #??? | | ???????????# ! #??? | | ???????????## ## %= #??? | | ???????????## #?# ! ** ##??? | | ???????### ### # ! ##??? | | ? ### ## #??? | | ?????# #??? | | ?????????# ## ##??? | | ?????????# ###?###???? | | ?????????# ####?????????? | | ?????????# ####????????????? | | ?????????# ###???????????????? | | ????????# ##?????????????????? | | ????????# #???????????????????? | | ????????## #????????????????????? | | ?????????###?????????????????????? | +----------------------------------------------------+ Best States ------------- Heat Dissipation 25 Energy Generation 12 Energy Capacity 265 Matter Stores 300 Matter Capacity 300 Sight Range 16 Terrain Scan Density 10 Evasion (%) 50 Recoil Reduction 2 Item Schematics ----------------- Hcp. Storage Unit | -10/Materials | Hacked Robot Schematics ------------------ None Fabricated ------------ Nothing Alien Tech Used ----------------- None Achievements -------------- None Challenges ------------ None Game ------ Seed PowerForceLog Manual? 0 Play Time 00:14:28 Cumulative 386.0 hours Start 2021.07.11 @ 19:52:21 End 2021.07.11 @ 20:07:29 Sessions 1 Manual Loads 0 Difficulty Rogue Special Mode None Game No. 316 Rogue 316 Adventurer 0 Explorer 0 Win Type - Total 1 Types 0/0/0/1/0/0/0/0/0 Lore% 70 Gallery% 79 Achievement% 60 Wizard Run 0 Options --------- ASCII 0 Keyboard 1 Movement Numpad Keybinds 0 Fullscreen 1 Font 12/Terminus Map View 83x54 Tactical HUD 1 Map Filters NONE Filters NONE Steam 1 RUN: 86e62a29-2d09-4278-8c06-af03899708b7